Cogmind - Beta 10.2 @@@ ROGUE MODE // 2021.03.16 @ 17:49:26 Player: Sen Result: Destroyed by D-53 Grenadier with Mini Grenade Launcher Performance ------------- Evolutions (0) 0 Regions Visited (2) 400 Robots Destroyed (16) 80 Value Destroyed (377) 377 Prototype IDs (0) 0 Alien Tech Used (0) 0 Bonus (0) 0 TOTAL SCORE: 857 Bonus ------- None Cogmind --------- Core Integrity 0/250 Matter 296/300 Energy 98/100 System Corruption 1% Temperature Cool (0) Movement Core (50) Location -10/Mines Parts ------- > --- POWER (1) -------- (None) > --- PROPULSION (2) --- (None) > --- UTILITY (2) ------ (None) > --- WEAPON (2) ------- (None) > --- INVENTORY (4) ---- Aluminum Leg Aluminum Leg Aluminum Leg Light Cannon Peak State ------------ > --- POWER ------------ Light Ion Engine > --- PROPULSION ------- Aluminum Leg Aluminum Leg > --- UTILITY ---------- Small Storage Unit Large Storage Unit > --- WEAPON ----------- Small Laser Assault Rifle > --- INVENTORY -------- Light Ion Engine Aluminum Leg Aluminum Leg Aluminum Leg Aluminum Leg Heat Sink Heat Sink Improved Heat Sink Medium Battery Medium Laser Light Cannon [Rating: 8] Favorites ----------- Power Light Ion Engine Engine Light Ion Engine Propulsion Aluminum Leg Leg Aluminum Leg Utility Large Storage Unit Device Sensor Array Storage Large Storage Unit Weapon Assault Rifle Energy Gun Medium Laser Ballistic Gun Assault Rifle Ballistic Cannon Light Cannon Build | -11 -10 -10 ------- Run | Scr Mat Min Slots Evolved . | . . . Power . | . . . Propulsion . | . . . Utility . | . . . Weapon . | . . . Parts Attached 16 | 6 9 1 Power 4 | 1 3 . Engine 4 | 1 3 . Core . | . . . Reactor . | . . . Propulsion 5 | 2 3 . Treads . | . . . Leg 5 | 2 3 . Wheel . | . . . Hover . | . . . Flight . | . . . Utility 3 | 1 1 1 Device 1 | . . 1 Storage 2 | 1 1 . Processor . | . . . Hackware . | . . . Protection . | . . . Artifact . | . . . Weapon 4 | 2 2 . Energy Gun 2 | 1 1 . Energy Cannon . | . . . Ballistic Gun 1 | 1 . . Ballistic Cannon 1 | . 1 . Launcher . | . . . Special Weapon . | . . . Impact Weapon . | . . . Slashing Weapon . | . . . Piercing Weapon . | . . . Special Melee Weapon . | . . . Unidentified Prototypes . | . . . Parts Lost 8 | . 4 4 Power 1 | . 1 . Propulsion 2 | . 1 1 Utility 1 | . . 1 Weapon 4 | . 2 2 Highest Loss Streak 4 | . 2 4 Average Slot Usage (%) 95 | . 96 91 Engine 13 | . 13 12 Leg 25 | . 25 25 Device 1 | . . 12 Storage 25 | . 27 12 Energy Gun 11 | . 12 . Ballistic Gun 13 | . 14 12 Ballistic Cannon 2 | . . 12 Naked Turns 16 | . . 16 Heaviest Build 30 | 11 30 27 Greatest Support 20 | 20 20 20 Greatest Overweight (x) 2 | . 2 1 Average Overweight (x) 1 | . 1 . Largest Inventory Capacity 12 | 6 12 12 Average Capacity 11 | 5 11 9 Most Carried 12 | . 12 11 Average Carried 3 | . 3 7 Final Capacity 12 | 6 12 4 Final Carried 12 | . 12 4 Class Distribution -------------------- 87% | Mutant 12% | Scavenger-Mutant Dominant Class ---------------- Mutant | -10/Materials Scavenger-Mutant | -10/Mines Resources | -11 -10 -10 ----------- Run | Scr Mat Min Matter Collected 515 | 130 385 . Remotely . | . . . Salvage Created 477 | . 477 . Parts 28 | . 28 . Haulers Intercepted . | . . . Recyclers Shooed . | . . . Parts Field Recycled . | . . . Retrieved Matter . | . . . Parts Self-Destructed . | . . . Prevented . | . . . Kills | -11 -10 -10 ------- Run | Scr Mat Min Combat Hostiles Destroyed 14 | . 14 . Guns 12 | . 12 . Cannons 2 | . 2 . Classes Destroyed 3 | . 3 . Watcher 2 | . 2 . Swarmer 6 | . 6 . Grunt 8 | . 8 . Best Kill Streak 5 | . 5 . Combat Bots Only 5 | . 5 . Max Kills in Single Turn 1 | . 1 . Gunslinging . | . . . Exploded . | . . . Melee . | . . . Uniques/NPCs Destroyed . | . . . Combat | -11 -10 -10 -------- Run | Scr Mat Min Damage Taken 1043 | . 600 443 Core 262 | . 96 166 Absorbed by Shields . | . . . Core Remaining (%) 100 | 100 . . Volleys Fired 58 | . 58 . Largest 2 | . 2 . Hottest 70 | . 70 . Shots Fired 103 | . 103 . Gun 98 | . 98 . Cannon 5 | . 5 . Launcher . | . . . Special . | . . . Kinetic 63 | . 63 . Thermal 40 | . 40 . Explosive . | . . . Electromagnetic . | . . . Robot Hit Streak 12 | . 12 . Robot Miss Streak 6 | . 6 . Penetration Max . | . . . Secondary Targets 1 | . 1 . Max Gunslinging Chain 1 | . 1 . Shots Hit Robots 65 | . 65 . Core Hits 27 | . 27 . Critical Hits . | . . . Critical Kills . | . . . Critical Parts Destroyed . | . . . Melee Attacks . | . . . Impact . | . . . Slashing . | . . . Piercing . | . . . Sneak Attacks . | . . . Combat Hostiles . | . . . Follow-up Attacks . | . . . Damage Inflicted 783 | . 783 . Guns 728 | . 728 . Cannons 55 | . 55 . Explosions . | . . . Melee . | . . . Ramming . | . . . Kinetic 489 | . 489 . Thermal 294 | . 294 . Explosive . | . . . Electromagnetic . | . . . Impact . | . . . Slashing . | . . . Piercing . | . . . Highest Corruption 1 | . 1 1 Average Corruption 1 | . 1 1 Corruption Purged . | . . . Effects 2 | . 1 1 Message Errors 1 | . . 1 Targeting Errors 1 | . 1 . Overload Shots . | . . . Overflow Damage . | . . . Projectiles . | . . . Explosions . | . . . Melee . | . . . Knockbacks . | . . . Impact . | . . . Kinetic . | . . . Secondary . | . . . Self-Inflicted Damage . | . . . Shots . | . . . Rammed . | . . . Targets Rammed . | . . . Kicked . | . . . Crushed . | . . . Highest Temperature 162 | . 162 . Average Temperature 51 | . 51 . Received Heat Transfer 183 | . 183 . Siege Activations . | . . . Robots Corrupted . | . . . Combat Hostiles . | . . . Parts Fried . | . . . Impact Corruptions . | . . . Robots Melted . | . . . Combat Hostiles . | . . . Parts Melted . | . . . Heat Transferred 781 | . 781 . Parts Sabotaged . | . . . Parts Stolen . | . . . Parts Stripped . | . . . Power Chain Reactions . | . . . Missiles Intercepted . | . . . Alert | -11 -10 -10 ------- Run | Scr Mat Min Peak Influence 187 | . 187 47 Initial 47 | . . 47 Average 48 | . 50 44 Maximum Alert Level . | . . . Low Security (%) 100 | 100 100 100 Level 1 . | . . . Level 2 . | . . . Level 3 . | . . . Level 4 . | . . . Level 5 . | . . . High Security . | . . . Max Security . | . . . Squads Dispatched 3 | . 3 . Investigation . | . . . Extermination . | . . . Reinforcement 3 | . 3 . Assault . | . . . Garrison . | . . . Intercept . | . . . Construction Impeded . | . . . Haulers Reinforced . | . . . Stealth | -11 -10 -10 --------- Run | Scr Mat Min Distress Signals . | . . . Communications Jammed . | . . . Distress Signals . | . . . Times Spotted 27 | . 19 8 Peak Tracking Total 7 | . 3 7 Tactical Retreats 1 | . . 1 Traps | -11 -10 -10 ------- Run | Scr Mat Min Traps Triggered 2 | . 2 . Indirectly . | . . . Trap Hack Attempts . | . . . Triggered . | . . . Disarmed . | . . . Reprogrammed . | . . . Reused . | . . . Traps Extracted . | . . . Installed . | . . . Triggered . | . . . Machines | -11 -10 -10 ---------- Run | Scr Mat Min Machines Disabled . | . . . Max in Single Turn . | . . . Machines Sabotaged . | . . . Garrisons Compromised . | . . . Overloaded Fab Kills . | . . . Fab Network Shutdowns . | . . . Hacking | -11 -10 -10 --------- Run | Scr Mat Min Machines Accessed 3 | . 3 . Terminals 2 | . 2 . Fabricators . | . . . Repair Stations . | . . . Recycling Units 1 | . 1 . Scanalyzers . | . . . Garrison Access . | . . . Total Hacks 7 | . 7 . Successful 5 | . 5 . Failed 2 | . 2 . Catastrophic . | . . . Database Lockouts . | . . . Manual . | . . . Terminals 6 | . 6 . Fabricators . | . . . Repair Stations . | . . . Recycling Units 1 | . 1 . Scanalyzers . | . . . Garrison Access . | . . . Terminal Hacks 4 | . 4 . Branch Access Points 1 | . 1 . Locate Traps 1 | . 1 . Hauler Manifests 1 | . 1 . Zone Layout 1 | . 1 . Fabricator Hacks . | . . . Repair Station Hacks . | . . . Recycling Unit Hacks 1 | . 1 . Retrieve Components 1 | . 1 . Scanalyzer . | . . . Garrison Access Hacks . | . . . Unauthorized Hacks . | . . . Terminals . | . . . Fabricators . | . . . Repair Stations . | . . . Recycling Units . | . . . Scanalyzers . | . . . Garrison Access . | . . . Data Cores Recovered . | . . . Used . | . . . Hacking Detections 2 | . 2 . Full Trace Events . | . . . Feedback Events . | . . . Feedback Blocked . | . . . Robot Schematics Acquired . | . . . Robots Built . | . . . Matter . | . . . Time . | . . . Total Robot Build Rating . | . . . Part Schematics Acquired . | . . . Parts Built . | . . . Matter . | . . . Time . | . . . Total Part Build Rating . | . . . Parts Repaired . | . . . Time . | . . . Parts Recycled . | . . . Recycled Matter . | . . . Retrieved Matter . | . . . Retrieved Components 7 | . 7 . Parts Scanalyzed . | . . . Part Schematics Acquired . | . . . Parts Damaged . | . . . Bothacking | -11 -10 -10 ------------ Run | Scr Mat Min Used RIF Installer . | . . . Robots Hacked . | . . . Non-combat . | . . . Combat . | . . . Robot Hacks Applied . | . . . Relay Couplers Released . | . . . Robots Rewired . | . . . Allies Hacked . | . . . Hacks Repelled . | . . . Allies | -11 -10 -10 -------- Run | Scr Mat Min Total Allies . | . . . Largest Group . | . . . Highest-Rated Group . | . . . Highest-Rated Ally . | . . . Total Orders . | . . . Ally Attacks . | . . . Total Damage . | . . . Kills . | . . . Allies Corrupted . | . . . Allies Melted . | . . . Intel | -11 -10 -10 ------- Run | Scr Mat Min Robot Analysis Total . | . . . Derelict Logs Recovered . | . . . Drone Launches . | . . . Drone Recoveries . | . . . Exploration | -11 -10 -10 ------------- Run | Scr Mat Min Turns Passed 1982 | 56 1669 257 Spaces Moved 584 | 46 416 122 Core 37 | 11 . 26 Treads . | . . . Legs 547 | 35 416 96 Wheels . | . . . Hover . | . . . Flight . | . . . Fastest Speed 50 | 50 120 50 Average Speed 149 | 103 160 127 Slowest Speed 180 | 120 180 150 Overloaded Moves . | . . . Propulsion Burnouts . | . . . Robots Hopped . | . . . Cave-ins Triggered . | . . . Exploration Rate (%) 35 | 4 68 35 Regions Visited 2 Branch Regions 1 Pre-discovered Areas 1 | . . 1 Known Exits Taken 1 | . 1 . Unknown Exits Taken 1 | 1 . . Scrap Searched . | . . . Spaces Dug . | . . . Terrain Destroyed . | . . . Melee . | . . . Projectile . | . . . AOE . | . . . Terrain Rammed . | . . . Walls Destroyed . | . . . Machines Disabled . | . . . Actions | -11 -10 -10 --------- Run | Scr Mat Min Total 1594 | 51 1316 227 Wait 909 | . 813 96 Move 582 | 45 415 122 Hop . | . . . Pick Up 16 | . 16 . Fast Attach 8 | 6 2 . Attach 4 | . 3 1 Detach 2 | . . 2 Swap 4 | . 4 . Drop 11 | . 5 6 Fire 58 | . 58 . Melee . | . . . Ram . | . . . Kick . | . . . Crush . | . . . Escape Stasis . | . . . Rewire . | . . . Trap . | . . . Miscellaneous . | . . . Route ------- -11/Scrapyard -10/Materials (discovered 2 exits: [*Mat] / *Min) -10/Mines History --------- Turn | Location | Event 7 | -11/Scrapyard | Discovered new exit (range 16) 57 | -11/Scrapyard | Entered Materials 84 | -10/Materials | Identified exit to Mines 301 | -10/Materials | Build established: Mutant 1319 | -10/Materials | Discovered new exit (range 5) 1726 | -10/Materials | Entered Mines 1727 | -10/Mines | Learned location of Storage (-8) 1933 | -10/Mines | Assembled infested the area 1959 | -10/Mines | Core integrity fell below 50% 1968 | -10/Mines | Core integrity fell below 20% 1983 | -10/Mines | Destroyed by D-53 Grenadier with Mini Grenade Launcher Last Messages --------------- 01946_ as-17985 sneak attacks. 01946_ R-06 Scavenger destroyed. 01947_ K-01 Serf collects debris. 01949_ T-07 Excavator system corrupted by crushing effect. 01949_ T-07 Excavator destroyed. 01950_ K-01 Serf collects debris. 01955_ K-01 Serf destroyed. 01956_ C-30 ARC bursts open, deploying its payload. 01956_ D-53 Grenadier unfolds itself. 01956_ Assault Rifle destroyed. 01960_ as-17985 destroyed. 01961_ Aluminum Leg destroyed. 01961_ Sensor Array destroyed. 01962_ Dropped Lrg. Storage Unit. 01963_ as-56970 destroyed. 01965_ as-78355 destroyed. 01965_ Dropped Aluminum Leg. 01967_ Lgt. Cannon destroyed. 01968_ The unstable cave ceiling collapses. 01969_ as-99389 destroyed. Map ----- +----------------------------------------------------+ | | | | | | | | | | | ?????????????????????????????????????????????????? | | ?????????????????????????????????????????????????? | | ?????????????????????????????????????????????????? | | ?????????????????????????????????????????????????? | | ?????????????????????????????????????????????????? | | ?????????????????????????????????? ??????????????? | | ????????????????????????????????? ?????????????? | | ????????????????????????????????? ??????????????? | | ???????????????????????????????## ??????????????? | | ??????????????????????????????? ???????????????? | | ??????????????????????????????? ???????????????? | | ??????????????????????????????# #???????????????? | | ??????????????????????????????# #???????????????? | | ??????????????????????????????# #???????????????? | | ??????????????????????????????# #???????????????? | | ?????????????????????????????## ###?????????????? | | ???????????????????????????### ##????????????? | | ???????????????????####???## #????????????? | | ??????????????????## ##?## #????????????? | | ?????????????????## ### ##???????###??? | | ?????????????????# @ ## #??????## ##? | | ????????????????# """ ### #??##### ## | | ????????????????# """ #?# #??# ! # | | ????????????????## d""" ### #??# *[! | | ?????????????????# ### ##?# | | ?????????????????# ##?# #?## | | ?????????????????## # d#??# = #??######## | | ??????????????????#### #??# ]* #?????????# | | ?????????????????????# #?# ! #?????##### | | ?????????????????????# ### ! ##????## | | ?????????????????????# "%" # #?????# | | ?????????????????????# " #???## """ | | ?????????????????????###### ##??## """ | | ??????????????????????????# #?### """ | | ??????????????????????????# ### | | ??????????????????????????## ### # | | ???????????????????????????# ! ## ### ## | | ??????????????????????????## % #### ##?#####? | | ??????????????????????##### = #??# #???????? | | ????????????????#????## #??# ##??????? | | ????????????????# ### #??## #??????? | | ????????????????# ##???# #??????? | | ????????????????# [ ##???## ##??????? | | ????????????????###### !%* ###### ##???????? | | ????????????????????##|!! ##???????? | +----------------------------------------------------+ Best States ------------- Heat Dissipation 25 Energy Generation 10 Energy Capacity 250 Matter Stores 300 Matter Capacity 300 Sight Range 16 Robot Scan Range 10 Terrain Scan Density 10 Evasion (%) 50 Item Schematics ----------------- None Robot Schematics ------------------ None Fabricated ------------ Nothing Alien Tech Used ----------------- None Achievements -------------- None Challenges ------------ None Game ------ Seed VariableLongswordBattery Manual? 0 Play Time 00:14:54 Cumulative 12.0 hours Start 2021.03.16 @ 17:31:31 End 2021.03.16 @ 17:49:26 Sessions 1 Manual Loads 0 Difficulty Rogue Special Mode None Game No. 12 Rogue 12 Adventurer 0 Explorer 0 Win Type - Total 0 Types 0/0/0/0/0/0/0/0/0 Lore% 20 Gallery% 21 Achievement% 18 Wizard Run 0 Options --------- ASCII 1 Keyboard 1 Movement Numpad Keybinds 0 Fullscreen 2 Font 18/Terminus Map View 76x50 Tactical HUD 1 Map Filters NONE Filters NONE Steam 1 RUN: f25bd0e8-8260-42e1-8cf2-a3ff1c5bc806